[Event "*** Titled Tuesday Blitz"]
[Site "Chess.com"]
[Date "2020.01.07"]
[Round "9"]
[White "Zq1"]
[Black "Everyfishknows"]
[Result "1-0"]
[WhiteElo "2512"]
[BlackElo "2334"]
[TimeControl "180+2"]
[EndTime "15:05:06 PST"]
[Termination "Zq1 won on time"]

1. d4 {[%clk 0:03:01.9]} 1... Nf6 {[%clk 0:02:59.5]} 2. c4 {[%clk 0:03:02.9]}
2... e6 {[%clk 0:03:00.2]} 3. Nc3 {[%clk 0:03:04.1]} 3... Bb4 {[%clk 0:03:00.8]}
4. e3 {[%clk 0:03:05.5]} 4... O-O {[%clk 0:03:01.3]} 5. Bd3 {[%clk 0:03:06.6]}
5... d5 {[%clk 0:03:02.3]} 6. cxd5 {[%clk 0:03:07.5]} 6... exd5 {[%clk
0:03:03.3]} 7. Ne2 {[%clk 0:03:08.9]} 7... c6 {[%clk 0:03:03.7]} 8. O-O {[%clk
0:03:09.5]} 8... Re8 {[%clk 0:02:49.4]} 9. Bd2 {[%clk 0:03:09.5]} 9... Bd6
{[%clk 0:02:48.5]} 10. f3 {[%clk 0:03:10.3]} 10... Nbd7 {[%clk 0:02:36.8]} 11.
a3 {[%clk 0:03:10.2]} 11... Qc7 {[%clk 0:02:31.1]} 12. h3 {[%clk 0:03:09.6]}
12... a6 {[%clk 0:02:23.4]} 13. b4 {[%clk 0:03:09.7]} 13... b5 {[%clk
0:02:18.2]} 14. e4 {[%clk 0:03:09.6]} 14... a5 {[%clk 0:01:11.3]} 15. e5 {[%clk
0:03:04.8]} 15... Nxe5 {[%clk 0:01:12.3]} 16. dxe5 {[%clk 0:03:05.2]} 16... Bxe5
{[%clk 0:01:13.9]} 17. Rc1 {[%clk 0:03:01.3]} 17... Nh5 {[%clk 0:00:52.3]} 18.
Nxd5 {[%clk 0:02:53.4]} 18... Qa7+ {[%clk 0:00:41.8]} 19. Be3 {[%clk 0:02:53.4]}
19... Bh2+ {[%clk 0:00:42.3]} 20. Kxh2 {[%clk 0:02:49.1]} 20... Rxe3 {[%clk
0:00:43.2]} 21. Nxe3 {[%clk 0:02:46.5]} 21... Qxe3 {[%clk 0:00:44.3]} 22. Rc3
{[%clk 0:02:42.6]} 22... Qe7 {[%clk 0:00:27.4]} 23. Be4 {[%clk 0:02:34.3]} 23...
Bb7 {[%clk 0:00:17.5]} 24. Qd4 {[%clk 0:02:26.6]} 24... axb4 {[%clk 0:00:14.6]}
25. axb4 {[%clk 0:02:26.8]} 25... Ra2 {[%clk 0:00:13.8]} 26. Re3 {[%clk
0:02:24.1]} 26... Qc7+ {[%clk 0:00:06.6]} 27. f4 {[%clk 0:02:24.8]} 27... Nf6
{[%clk 0:00:04.7]} 28. Qe5 {[%clk 0:02:17.7]} 28... Qd7 {[%clk 0:00:03]} 29. Nd4
{[%clk 0:02:14.4]} 1-0

[Event "*** Titled Tuesday Blitz"]
[Site "Chess.com"]
[Date "2020.01.07"]
[Round "9"]
[White "FredyMatsuura"]
[Black "Caisachess"]
[Result "1-0"]
[WhiteElo "2256"]
[BlackElo "2352"]
[TimeControl "180+2"]
[EndTime "15:05:24 PST"]
[Termination "FredyMatsuura won by resignation"]

1. d4 {[%clk 0:03:01.9]} 1... Nf6 {[%clk 0:03:00.2]} 2. c4 {[%clk 0:03:02.9]}
2... e6 {[%clk 0:03:01.3]} 3. Nf3 {[%clk 0:03:03.9]} 3... Bb4+ {[%clk
0:03:01.7]} 4. Nbd2 {[%clk 0:03:04.3]} 4... O-O {[%clk 0:03:01.1]} 5. a3 {[%clk
0:03:05.3]} 5... Be7 {[%clk 0:03:02]} 6. e4 {[%clk 0:03:05.8]} 6... d5 {[%clk
0:03:03.5]} 7. e5 {[%clk 0:03:07]} 7... Nfd7 {[%clk 0:03:04]} 8. cxd5 {[%clk
0:03:07.7]} 8... exd5 {[%clk 0:03:04]} 9. Bd3 {[%clk 0:03:09.3]} 9... c5 {[%clk
0:03:00.2]} 10. h4 {[%clk 0:02:31.2]} 10... cxd4 {[%clk 0:02:36.5]} 11. Bxh7+
{[%clk 0:02:27.8]} 11... Kxh7 {[%clk 0:02:26.4]} 12. Ng5+ {[%clk 0:02:28.3]}
12... Bxg5 {[%clk 0:02:06.8]} 13. hxg5+ {[%clk 0:02:27.4]} 13... Kg6 {[%clk
0:02:07.9]} 14. Qh5+ {[%clk 0:02:25.8]} 14... Kf5 {[%clk 0:02:08.7]} 15. Nf3
{[%clk 0:02:11.3]} 15... Ke6 {[%clk 0:01:40.2]} 16. Nxd4+ {[%clk 0:02:08.8]}
16... Ke7 {[%clk 0:01:41.2]} 17. Nf5+ {[%clk 0:02:08.5]} 17... Ke6 {[%clk
0:01:41.3]} 18. Nxg7+ {[%clk 0:02:07]} 18... Ke7 {[%clk 0:01:38.3]} 19. g6
{[%clk 0:01:49.3]} 19... Qa5+ {[%clk 0:01:26.6]} 20. Bd2 {[%clk 0:01:43.4]}
20... Qb5 {[%clk 0:01:26.5]} 21. Qh4+ {[%clk 0:01:29.1]} 21... f6 {[%clk
0:01:27]} 22. Bb4+ {[%clk 0:01:27.6]} 22... Nc5 {[%clk 0:01:19]} 23. exf6+
{[%clk 0:01:18.9]} 23... Rxf6 {[%clk 0:01:18.2]} 24. Nh5 {[%clk 0:01:17.9]}
24... Be6 {[%clk 0:01:02.8]} 25. Qxf6+ {[%clk 0:01:15.7]} 25... Kd7 {[%clk
0:01:04.1]} 26. Nf4 {[%clk 0:01:11.7]} 1-0

[Event "*** Titled Tuesday Blitz"]
[Site "Chess.com"]
[Date "2020.01.07"]
[Round "9"]
[White "KhazarBabazada"]
[Black "Dynamikus"]
[Result "1-0"]
[WhiteElo "2916"]
[BlackElo "2653"]
[TimeControl "180+2"]
[EndTime "15:05:26 PST"]
[Termination "KhazarBabazada won by checkmate"]

1. e4 {[%clk 0:03:01.9]} 1... e5 {[%clk 0:02:59.6]} 2. Nf3 {[%clk 0:03:02.2]}
2... Nf6 {[%clk 0:03:01.2]} 3. Nxe5 {[%clk 0:03:01.2]} 3... d6 {[%clk
0:03:01.7]} 4. Nf3 {[%clk 0:03:02.5]} 4... Nxe4 {[%clk 0:03:02.9]} 5. c3 {[%clk
0:03:03.5]} 5... d5 {[%clk 0:02:59.6]} 6. d3 {[%clk 0:03:04.7]} 6... Nf6 {[%clk
0:03:00.6]} 7. d4 {[%clk 0:03:06.3]} 7... Bd6 {[%clk 0:03:01.2]} 8. Bd3 {[%clk
0:03:08]} 8... Qe7+ {[%clk 0:03:00.8]} 9. Be3 {[%clk 0:03:08.4]} 9... Ng4 {[%clk
0:02:55.9]} 10. Qe2 {[%clk 0:03:05.6]} 10... Nxe3 {[%clk 0:02:56.6]} 11. fxe3
{[%clk 0:03:06.4]} 11... Nd7 {[%clk 0:02:57.7]} 12. O-O {[%clk 0:03:07.1]} 12...
Nf6 {[%clk 0:02:58.7]} 13. Nbd2 {[%clk 0:03:07.8]} 13... Bd7 {[%clk 0:02:55.1]}
14. Rae1 {[%clk 0:03:09.1]} 14... O-O-O {[%clk 0:02:46.8]} 15. e4 {[%clk
0:03:07.8]} 15... dxe4 {[%clk 0:02:46.7]} 16. Nxe4 {[%clk 0:03:08.9]} 16... Nxe4
{[%clk 0:02:47.4]} 17. Bxe4 {[%clk 0:03:10.1]} 17... Rde8 {[%clk 0:02:42.8]} 18.
Qd3 {[%clk 0:02:57.7]} 18... Qd8 {[%clk 0:02:32.3]} 19. b4 {[%clk 0:02:50.9]}
19... Kb8 {[%clk 0:02:26.2]} 20. b5 {[%clk 0:02:51.1]} 20... Re7 {[%clk
0:02:11.2]} 21. c4 {[%clk 0:02:49.6]} 21... Bb4 {[%clk 0:02:08.5]} 22. Rb1
{[%clk 0:02:48.3]} 22... Ba5 {[%clk 0:02:00.7]} 23. c5 {[%clk 0:02:26.4]} 23...
Rhe8 {[%clk 0:01:51.2]} 24. Ne5 {[%clk 0:02:21.4]} 24... f6 {[%clk 0:01:46.1]}
25. Nxd7+ {[%clk 0:02:20.8]} 25... Rxd7 {[%clk 0:01:45.4]} 26. Bxb7 {[%clk
0:02:16.8]} 26... Rxd4 {[%clk 0:01:39]} 27. Qf3 {[%clk 0:02:11.9]} 27... Rd3
{[%clk 0:01:16.2]} 28. Qc6 {[%clk 0:02:11]} 28... Re5 {[%clk 0:01:07.9]} 29. Ba8
{[%clk 0:02:01.3]} 29... Qc8 {[%clk 0:01:02.8]} 30. Rfd1 {[%clk 0:02:02.5]}
30... Rxd1+ {[%clk 0:00:38.7]} 31. Rxd1 {[%clk 0:02:04.4]} 31... Rxc5 {[%clk
0:00:40.1]} 32. Qf3 {[%clk 0:01:59.1]} 32... Rxb5 {[%clk 0:00:39.6]} 33. Kh1
{[%clk 0:01:58.6]} 33... c5 {[%clk 0:00:36.2]} 34. Bc6 {[%clk 0:01:57.4]} 34...
Rb6 {[%clk 0:00:35.7]} 35. Qf4+ {[%clk 0:01:58.3]} 35... Qc7 {[%clk 0:00:34.2]}
36. Rd8# {[%clk 0:01:59.5]} 1-0

[Event "*** Titled Tuesday Blitz"]
[Site "Chess.com"]
[Date "2020.01.07"]
[Round "9"]
[White "kasparicy"]
[Black "SCIM"]
[Result "0-1"]
[WhiteElo "2313"]
[BlackElo "2463"]
[TimeControl "180+2"]
[EndTime "15:05:29 PST"]
[Termination "SCIM won by resignation"]

1. e4 {[%clk 0:03:01.9]} 1... c5 {[%clk 0:02:59.2]} 2. Nf3 {[%clk 0:03:01.2]}
2... e6 {[%clk 0:03:00.2]} 3. d4 {[%clk 0:03:02.5]} 3... cxd4 {[%clk 0:03:00.8]}
4. Nxd4 {[%clk 0:03:04.4]} 4... Nc6 {[%clk 0:03:01.8]} 5. Nc3 {[%clk 0:03:02.4]}
5... Qc7 {[%clk 0:03:03.3]} 6. Be2 {[%clk 0:03:02.8]} 6... Nf6 {[%clk
0:03:02.6]} 7. Be3 {[%clk 0:03:03]} 7... a6 {[%clk 0:03:00.4]} 8. O-O {[%clk
0:03:01.1]} 8... b5 {[%clk 0:03:01.3]} 9. a3 {[%clk 0:03:00.4]} 9... Bb7 {[%clk
0:03:00.5]} 10. f4 {[%clk 0:02:59.7]} 10... Nxd4 {[%clk 0:02:53.6]} 11. Qxd4
{[%clk 0:03:01.6]} 11... Rc8 {[%clk 0:02:54.6]} 12. Bf3 {[%clk 0:02:58.1]} 12...
Bc5 {[%clk 0:02:37.7]} 13. Qxc5 {[%clk 0:02:56.5]} 13... Qxc5 {[%clk 0:02:39.6]}
14. Bxc5 {[%clk 0:02:58]} 14... Rxc5 {[%clk 0:02:40.1]} 15. e5 {[%clk
0:02:59.6]} 15... Bxf3 {[%clk 0:02:40.9]} 16. exf6 {[%clk 0:02:58.1]} 16... Bc6
{[%clk 0:02:34.4]} 17. fxg7 {[%clk 0:02:52.4]} 17... Rg8 {[%clk 0:02:35.2]} 18.
g3 {[%clk 0:02:51.4]} 18... Rxg7 {[%clk 0:02:35.1]} 19. Rad1 {[%clk 0:02:44.4]}
19... h5 {[%clk 0:02:33.8]} 20. Rd3 {[%clk 0:02:34.9]} 20... h4 {[%clk
0:02:32.2]} 21. Re1 {[%clk 0:02:36.2]} 21... hxg3 {[%clk 0:02:18.7]} 22. hxg3
{[%clk 0:02:33.4]} 22... Rh5 {[%clk 0:02:11.5]} 23. Re2 {[%clk 0:02:12.4]} 23...
Rh1+ {[%clk 0:02:08.2]} 24. Kf2 {[%clk 0:02:11.1]} 24... f5 {[%clk 0:02:08.2]}
25. Na2 {[%clk 0:01:45.5]} 25... Bd5 {[%clk 0:02:00.9]} 26. b3 {[%clk 0:01:44]}
26... Be4 {[%clk 0:01:53.3]} 27. Rde3 {[%clk 0:01:40.8]} 27... Rh2+ {[%clk
0:01:51.4]} 28. Ke1 {[%clk 0:01:40]} 28... Rxe2+ {[%clk 0:01:52]} 29. Kxe2
{[%clk 0:01:38.7]} 29... Bxc2 {[%clk 0:01:52.6]} 30. b4 {[%clk 0:01:40.3]} 30...
Rh7 {[%clk 0:01:50.7]} 31. Kd2 {[%clk 0:01:37.4]} 31... Be4 {[%clk 0:01:50.5]}
32. Nc3 {[%clk 0:01:34.4]} 32... d5 {[%clk 0:01:49.7]} 33. Nxe4 {[%clk
0:01:34.4]} 33... fxe4 {[%clk 0:01:50.1]} 34. Kc3 {[%clk 0:01:36.3]} 34... Kd7
{[%clk 0:01:45.9]} 35. Kd4 {[%clk 0:01:37.6]} 35... Kd6 {[%clk 0:01:47.2]} 36.
g4 {[%clk 0:01:38.8]} 36... Rc7 {[%clk 0:01:48]} 37. Rc3 {[%clk 0:01:34.7]}
37... Rf7 {[%clk 0:01:26.7]} 38. Ke3 {[%clk 0:01:16.9]} 38... e5 {[%clk
0:01:26.4]} 39. f5 {[%clk 0:01:17.3]} 39... d4+ {[%clk 0:01:26.2]} 0-1

[Event "*** Titled Tuesday Blitz"]
[Site "Chess.com"]
[Date "2020.01.07"]
[Round "9"]
[White "Sven_Tica"]
[Black "hansen"]
[Result "0-1"]
[WhiteElo "2666"]
[BlackElo "2875"]
[TimeControl "180+2"]
[EndTime "15:05:38 PST"]
[Termination "hansen won by resignation"]

1. d4 {[%clk 0:03:01.9]} 1... Nf6 {[%clk 0:03:00.5]} 2. c4 {[%clk 0:03:00.8]}
2... e6 {[%clk 0:03:01.9]} 3. g3 {[%clk 0:03:02.1]} 3... d5 {[%clk 0:03:01.9]}
4. Bg2 {[%clk 0:03:02.2]} 4... Bb4+ {[%clk 0:03:00.3]} 5. Bd2 {[%clk 0:03:03.3]}
5... Be7 {[%clk 0:03:01.1]} 6. Nf3 {[%clk 0:02:58.8]} 6... O-O {[%clk
0:03:02.6]} 7. O-O {[%clk 0:02:59.9]} 7... c6 {[%clk 0:03:04]} 8. Qc2 {[%clk
0:03:01.2]} 8... b6 {[%clk 0:03:03.7]} 9. Bf4 {[%clk 0:02:58.3]} 9... Bb7 {[%clk
0:03:01.6]} 10. Rd1 {[%clk 0:02:58.4]} 10... Nbd7 {[%clk 0:03:02.6]} 11. Ne5
{[%clk 0:02:58.3]} 11... Rc8 {[%clk 0:03:01.6]} 12. Nc3 {[%clk 0:02:50.4]} 12...
dxc4 {[%clk 0:02:55.6]} 13. Nxc4 {[%clk 0:02:47.9]} 13... Nd5 {[%clk 0:02:57]}
14. Nd6 {[%clk 0:02:38.5]} 14... Bxd6 {[%clk 0:02:50.3]} 15. Bxd6 {[%clk
0:02:39.3]} 15... Re8 {[%clk 0:02:52]} 16. Ne4 {[%clk 0:02:07.7]} 16... N7f6
{[%clk 0:02:51.2]} 17. Be5 {[%clk 0:02:05.7]} 17... Nxe4 {[%clk 0:02:52]} 18.
Bxe4 {[%clk 0:02:05.3]} 18... f5 {[%clk 0:02:53.2]} 19. Bg2 {[%clk 0:02:06.1]}
19... c5 {[%clk 0:02:52.6]} 20. dxc5 {[%clk 0:02:06.5]} 20... Rxc5 {[%clk
0:02:53.5]} 21. Qb3 {[%clk 0:02:07]} 21... Qe7 {[%clk 0:02:53.6]} 22. Rac1
{[%clk 0:02:06.4]} 22... Rec8 {[%clk 0:02:54.5]} 23. Rxc5 {[%clk 0:02:06.6]}
23... Rxc5 {[%clk 0:02:56.4]} 24. Bd4 {[%clk 0:02:07.9]} 24... Rc8 {[%clk
0:02:54.2]} 25. e4 {[%clk 0:02:06.3]} 25... fxe4 {[%clk 0:02:47.2]} 26. Bxe4
{[%clk 0:02:08.2]} 26... h6 {[%clk 0:02:47.3]} 27. Be5 {[%clk 0:02:07.4]} 27...
Qf7 {[%clk 0:02:45.8]} 28. Qf3 {[%clk 0:02:01.3]} 28... Qxf3 {[%clk 0:02:38.4]}
29. Bxf3 {[%clk 0:02:03.2]} 29... Rc2 {[%clk 0:02:39.3]} 30. h4 {[%clk
0:01:54.1]} 30... Kf7 {[%clk 0:02:39.7]} 31. h5 {[%clk 0:01:55.1]} 31... Bc6
{[%clk 0:02:37.7]} 32. Be4 {[%clk 0:01:51.1]} 32... Re2 {[%clk 0:02:38.1]} 33.
Bg6+ {[%clk 0:01:52.4]} 33... Kf8 {[%clk 0:02:38.3]} 34. Bd4 {[%clk 0:01:52.9]}
34... Bb5 {[%clk 0:02:25.4]} 35. Kg2 {[%clk 0:01:43.2]} 35... e5 {[%clk
0:02:14.4]} 36. a4 {[%clk 0:01:26.4]} 36... exd4 {[%clk 0:01:51.4]} 37. axb5
{[%clk 0:01:25.2]} 37... Ne3+ {[%clk 0:01:52.9]} 38. Kf3 {[%clk 0:01:26.5]}
38... Rxf2+ {[%clk 0:01:54.3]} 39. Kxf2 {[%clk 0:01:26.3]} 39... Nxd1+ {[%clk
0:01:55.8]} 40. Ke2 {[%clk 0:01:27.6]} 40... Nxb2 {[%clk 0:01:57]} 41. Kd2
{[%clk 0:01:26]} 41... Ke7 {[%clk 0:01:50.5]} 42. Be4 {[%clk 0:01:23.4]} 42...
Kd6 {[%clk 0:01:50]} 43. Kc2 {[%clk 0:01:22.7]} 43... Nc4 {[%clk 0:01:49.3]} 44.
Kd3 {[%clk 0:01:24.2]} 44... Kc5 {[%clk 0:01:50.3]} 45. Bf5 {[%clk 0:01:19.5]}
45... Nd6 {[%clk 0:01:47.1]} 46. Bd7 {[%clk 0:01:18.8]} 46... Nxb5 {[%clk
0:01:47.8]} 0-1

[Event "*** Titled Tuesday Blitz"]
[Site "Chess.com"]
[Date "2020.01.07"]
[Round "9"]
[White "Witik"]
[Black "Kumi29"]
[Result "1-0"]
[WhiteElo "2674"]
[BlackElo "2498"]
[TimeControl "180+2"]
[EndTime "15:05:46 PST"]
[Termination "Witik won by checkmate"]

1. e4 {[%clk 0:03:01.9]} 1... d5 {[%clk 0:02:59.6]} 2. exd5 {[%clk 0:03:02.2]}
2... Qxd5 {[%clk 0:03:01.5]} 3. Nc3 {[%clk 0:03:02.7]} 3... Qd8 {[%clk
0:03:02.5]} 4. d4 {[%clk 0:03:02.6]} 4... Nf6 {[%clk 0:03:03.8]} 5. Nf3 {[%clk
0:03:03.1]} 5... g6 {[%clk 0:03:05.1]} 6. Bg5 {[%clk 0:03:00.6]} 6... Bg7 {[%clk
0:03:05.8]} 7. Qd2 {[%clk 0:03:01.1]} 7... O-O {[%clk 0:02:59]} 8. O-O-O {[%clk
0:03:01.5]} 8... b6 {[%clk 0:02:59]} 9. Bc4 {[%clk 0:02:56]} 9... Bb7 {[%clk
0:02:56.4]} 10. h4 {[%clk 0:02:56.4]} 10... h5 {[%clk 0:02:39.8]} 11. Ne5 {[%clk
0:02:55.9]} 11... e6 {[%clk 0:02:31.9]} 12. f3 {[%clk 0:02:49.7]} 12... Nc6
{[%clk 0:02:26.8]} 13. Qe1 {[%clk 0:02:43.1]} 13... Ne7 {[%clk 0:02:27.5]} 14.
g4 {[%clk 0:02:42.6]} 14... hxg4 {[%clk 0:01:53.5]} 15. h5 {[%clk 0:02:38.2]}
15... Nxh5 {[%clk 0:01:50]} 16. fxg4 {[%clk 0:02:34.3]} 16... Bxh1 {[%clk
0:01:46.5]} 17. gxh5 {[%clk 0:02:29.7]} 17... Bd5 {[%clk 0:01:44.9]} 18. hxg6
{[%clk 0:02:26.2]} 18... Bxc4 {[%clk 0:01:41.8]} 19. Qh4 {[%clk 0:02:04.5]}
19... Nxg6 {[%clk 0:00:58.4]} 20. Nxg6 {[%clk 0:02:00.6]} 20... f6 {[%clk
0:00:57.9]} 21. Be3 {[%clk 0:01:40.7]} 21... f5 {[%clk 0:00:27.6]} 22. Bg5
{[%clk 0:01:40.2]} 22... Qe8 {[%clk 0:00:22.9]} 23. Nxf8 {[%clk 0:01:36.1]}
23... Qxf8 {[%clk 0:00:21.6]} 24. Rg1 {[%clk 0:01:36.7]} 24... c5 {[%clk
0:00:12.4]} 25. Bf6 {[%clk 0:01:35.4]} 25... cxd4 {[%clk 0:00:11.5]} 26. Qh6
{[%clk 0:01:26]} 26... dxc3 {[%clk 0:00:10]} 27. Rxg7+ {[%clk 0:01:25.2]} 27...
Qxg7 {[%clk 0:00:11.5]} 28. Qxg7# {[%clk 0:01:26]} 1-0

[Event "*** Titled Tuesday Blitz"]
[Site "Chess.com"]
[Date "2020.01.07"]
[Round "9"]
[White "szefru"]
[Black "AndrewDGreen"]
[Result "0-1"]
[WhiteElo "2114"]
[BlackElo "2210"]
[TimeControl "180+2"]
[EndTime "15:05:47 PST"]
[Termination "AndrewDGreen won by checkmate"]

1. b3 {[%clk 0:03:01.9]} 1... e5 {[%clk 0:02:55.6]} 2. Bb2 {[%clk 0:03:02.9]}
2... Nc6 {[%clk 0:02:56]} 3. g3 {[%clk 0:03:04.3]} 3... Nf6 {[%clk 0:02:55.9]}
4. Bg2 {[%clk 0:03:05.8]} 4... d5 {[%clk 0:02:56.7]} 5. e3 {[%clk 0:03:06.9]}
5... Be6 {[%clk 0:02:57.4]} 6. d3 {[%clk 0:03:07.1]} 6... Qd7 {[%clk 0:02:55.8]}
7. Ne2 {[%clk 0:03:08.5]} 7... Bh3 {[%clk 0:02:54.8]} 8. O-O {[%clk 0:03:08.3]}
8... h5 {[%clk 0:02:55]} 9. f4 {[%clk 0:02:50.6]} 9... Bxg2 {[%clk 0:02:37.8]}
10. Kxg2 {[%clk 0:02:51.1]} 10... h4 {[%clk 0:02:39.3]} 11. f5 {[%clk
0:02:39.6]} 11... hxg3 {[%clk 0:02:20.9]} 12. Nxg3 {[%clk 0:02:38.6]} 12...
O-O-O {[%clk 0:02:10.2]} 13. Nd2 {[%clk 0:02:35.5]} 13... Bc5 {[%clk 0:02:05.9]}
14. Qf3 {[%clk 0:02:29.1]} 14... Rh4 {[%clk 0:01:22.6]} 15. a3 {[%clk
0:02:18.9]} 15... Ng4 {[%clk 0:01:19.3]} 16. Rh1 {[%clk 0:01:59]} 16... Nxe3+
{[%clk 0:01:17]} 17. Kf2 {[%clk 0:01:44.5]} 17... Nxc2+ {[%clk 0:01:16.8]} 18.
Ke2 {[%clk 0:01:42.5]} 18... Nxa1 {[%clk 0:01:15.9]} 19. Bxa1 {[%clk 0:01:42.9]}
19... Bd4 {[%clk 0:01:17.1]} 20. Qg2 {[%clk 0:01:14.2]} 20... Rf4 {[%clk
0:01:12.3]} 21. Nf3 {[%clk 0:01:11.5]} 21... Bxa1 {[%clk 0:01:10.9]} 22. Rxa1
{[%clk 0:01:13.4]} 22... Nd4+ {[%clk 0:01:06.5]} 23. Nxd4 {[%clk 0:01:12.4]}
23... exd4 {[%clk 0:01:08.4]} 24. Kd2 {[%clk 0:01:09.8]} 24... Re8 {[%clk
0:01:06.1]} 25. Ne2 {[%clk 0:01:08.4]} 25... Rh4 {[%clk 0:01:01.6]} 26. Qg3
{[%clk 0:01:04.9]} 26... Qe7 {[%clk 0:00:50.3]} 27. Rc1 {[%clk 0:00:47.7]} 27...
Qxe2# {[%clk 0:00:47.1]} 0-1

[Event "*** Titled Tuesday Blitz"]
[Site "Chess.com"]
[Date "2020.01.07"]
[Round "9"]
[White "FrogMist"]
[Black "2165149677570"]
[Result "1-0"]
[WhiteElo "2410"]
[BlackElo "2288"]
[TimeControl "180+2"]
[EndTime "15:05:50 PST"]
[Termination "FrogMist won by resignation"]

1. e4 {[%clk 0:03:01.9]} 1... c5 {[%clk 0:03:00.9]} 2. Nf3 {[%clk 0:03:02.9]}
2... d6 {[%clk 0:03:02.2]} 3. d4 {[%clk 0:03:03.9]} 3... cxd4 {[%clk 0:03:04.1]}
4. Nxd4 {[%clk 0:03:05.8]} 4... Nf6 {[%clk 0:03:05.7]} 5. Nc3 {[%clk 0:03:07.2]}
5... a6 {[%clk 0:03:07.2]} 6. Bg5 {[%clk 0:03:08.8]} 6... e6 {[%clk 0:03:08.5]}
7. f4 {[%clk 0:03:10]} 7... b5 {[%clk 0:03:10.2]} 8. e5 {[%clk 0:03:09.7]} 8...
dxe5 {[%clk 0:03:12.1]} 9. fxe5 {[%clk 0:03:11.4]} 9... Qc7 {[%clk 0:03:13.7]}
10. exf6 {[%clk 0:03:10.4]} 10... Qe5+ {[%clk 0:03:15.1]} 11. Be2 {[%clk
0:03:10.5]} 11... Qxg5 {[%clk 0:03:16.2]} 12. O-O {[%clk 0:03:03.4]} 12... Ra7
{[%clk 0:03:17.3]} 13. Qd3 {[%clk 0:02:56.9]} 13... Rd7 {[%clk 0:03:14.3]} 14.
Ne4 {[%clk 0:02:15.5]} 14... Qg6 {[%clk 0:03:12.4]} 15. a4 {[%clk 0:02:13.1]}
15... e5 {[%clk 0:02:38.4]} 16. c3 {[%clk 0:01:20.5]} 16... exd4 {[%clk
0:02:38.1]} 17. Rae1 {[%clk 0:01:09.8]} 17... Kd8 {[%clk 0:01:58.3]} 18. axb5
{[%clk 0:01:04.2]} 18... dxc3 {[%clk 0:01:56.9]} 19. Qxc3 {[%clk 0:00:59.3]}
19... Qxe4 {[%clk 0:01:24.9]} 20. fxg7 {[%clk 0:00:51]} 20... Bxg7 {[%clk
0:01:26.8]} 21. Qxg7 {[%clk 0:00:30.5]} 21... Qd4+ {[%clk 0:01:23.3]} 22. Qxd4
{[%clk 0:00:31.6]} 22... Rxd4 {[%clk 0:01:25.2]} 23. bxa6 {[%clk 0:00:33.1]}
23... Re8 {[%clk 0:00:54.6]} 24. a7 {[%clk 0:00:29.8]} 1-0

[Event "*** Titled Tuesday Blitz"]
[Site "Chess.com"]
[Date "2020.01.07"]
[Round "9"]
[White "temus_galaktionov"]
[Black "chessdjw"]
[Result "1-0"]
[WhiteElo "2758"]
[BlackElo "2649"]
[TimeControl "180+2"]
[EndTime "15:05:56 PST"]
[Termination "temus_galaktionov won by resignation"]

1. d4 {[%clk 0:03:01.9]} 1... d5 {[%clk 0:03:00.3]} 2. Nf3 {[%clk 0:02:59.8]}
2... e6 {[%clk 0:03:00.5]} 3. c4 {[%clk 0:02:59.8]} 3... a6 {[%clk 0:03:01.9]}
4. cxd5 {[%clk 0:02:59.8]} 4... exd5 {[%clk 0:03:02.6]} 5. Nc3 {[%clk
0:03:01.7]} 5... Nf6 {[%clk 0:03:03.1]} 6. Bf4 {[%clk 0:03:01]} 6... Bd6 {[%clk
0:03:02.6]} 7. Bxd6 {[%clk 0:02:57.5]} 7... Qxd6 {[%clk 0:03:04.2]} 8. e3 {[%clk
0:02:58.8]} 8... O-O {[%clk 0:03:03.7]} 9. Bd3 {[%clk 0:02:59.5]} 9... c6 {[%clk
0:02:48.5]} 10. O-O {[%clk 0:02:56.9]} 10... Bg4 {[%clk 0:02:48.6]} 11. h3
{[%clk 0:02:56.4]} 11... Bh5 {[%clk 0:02:47.5]} 12. g4 {[%clk 0:02:43.5]} 12...
Bg6 {[%clk 0:02:44.9]} 13. Bxg6 {[%clk 0:02:44.9]} 13... hxg6 {[%clk 0:02:44.9]}
14. Ne5 {[%clk 0:02:43.2]} 14... c5 {[%clk 0:02:31.4]} 15. f4 {[%clk 0:02:35.2]}
15... Nc6 {[%clk 0:02:31.8]} 16. Qd2 {[%clk 0:02:35.1]} 16... cxd4 {[%clk
0:02:29.1]} 17. exd4 {[%clk 0:02:33.7]} 17... Ne4 {[%clk 0:02:29.5]} 18. Qe3
{[%clk 0:02:29.2]} 18... Nxc3 {[%clk 0:02:23.8]} 19. bxc3 {[%clk 0:02:21.8]}
19... Rfe8 {[%clk 0:02:21.4]} 20. Qd3 {[%clk 0:02:15.8]} 20... Re7 {[%clk
0:01:46.2]} 21. Rf3 {[%clk 0:02:11.5]} 21... Rae8 {[%clk 0:01:46.7]} 22. Raf1
{[%clk 0:02:08.7]} 22... b5 {[%clk 0:00:56.6]} 23. Kg2 {[%clk 0:02:03.1]} 23...
Qc7 {[%clk 0:00:32.5]} 24. h4 {[%clk 0:02:00.2]} 24... Qb6 {[%clk 0:00:32.9]}
25. h5 {[%clk 0:01:57.5]} 25... gxh5 {[%clk 0:00:33.4]} 26. gxh5 {[%clk
0:01:54.7]} 26... b4 {[%clk 0:00:34.9]} 27. Rg3 {[%clk 0:01:51.9]} 27... f6
{[%clk 0:00:27.3]} 28. Ng4 {[%clk 0:01:45.2]} 28... Kf8 {[%clk 0:00:24.2]} 29.
h6 {[%clk 0:01:42.5]} 29... gxh6 {[%clk 0:00:23.6]} 30. Nxf6 {[%clk 0:01:41.1]}
30... Re2+ {[%clk 0:00:22]} 31. Kh3 {[%clk 0:01:36.1]} 31... Nxd4 {[%clk
0:00:19.5]} 32. Nd7+ {[%clk 0:01:30.2]} 32... Kf7 {[%clk 0:00:19]} 33. Nxb6
{[%clk 0:01:31.7]} 1-0